[Event "Early-Titled-Tuesday-Blitz-August-29-2023"]
[Site "Chess.com"]
[Date "2023.08.29"]
[Round "6"]
[White "Barbus89"]
[Black "WildTricks"]
[Result "1/2-1/2"]
[WhiteElo "2510"]
[BlackElo "2647"]
[TimeControl "180+1"]
[EndTime "9:08:12 PDT"]
[Termination "Game drawn by repetition"]

1. Nf3 {[%clk 0:03:00]} 1... b6 {[%clk 0:02:58.5]} 2. g3 {[%clk 0:02:59.9]} 2...
Bb7 {[%clk 0:02:58.8]} 3. Bg2 {[%clk 0:03:00.4]} 3... c5 {[%clk 0:02:59.5]} 4.
O-O {[%clk 0:03:00.4]} 4... Nf6 {[%clk 0:03:00.1]} 5. c4 {[%clk 0:03:00.5]} 5...
g6 {[%clk 0:03:00.2]} 6. b3 {[%clk 0:03:00.5]} 6... Bg7 {[%clk 0:02:59.8]} 7.
Bb2 {[%clk 0:03:00.6]} 7... O-O {[%clk 0:03:00.4]} 8. Nc3 {[%clk 0:02:57.2]}
8... d5 {[%clk 0:03:00]} 9. Nxd5 {[%clk 0:02:54.9]} 9... Nxd5 {[%clk 0:03:00.9]}
10. Bxg7 {[%clk 0:02:54.9]} 10... Kxg7 {[%clk 0:03:01.8]} 11. cxd5 {[%clk
0:02:54.2]} 11... Qxd5 {[%clk 0:03:02.7]} 12. d4 {[%clk 0:02:42.2]} 12... Na6
{[%clk 0:02:57.3]} 13. Nh4 {[%clk 0:02:33.8]} 13... Qd7 {[%clk 0:02:55.9]} 14.
dxc5 {[%clk 0:02:24.9]} 14... Qxd1 {[%clk 0:02:51.8]} 15. Rfxd1 {[%clk
0:02:24.7]} 15... Bxg2 {[%clk 0:02:51.7]} 16. Nxg2 {[%clk 0:02:25.6]} 16... Nxc5
{[%clk 0:02:51]} 17. b4 {[%clk 0:02:25.7]} 17... Ne4 {[%clk 0:02:47.2]} 18. Rd7
{[%clk 0:02:22.9]} 18... e6 {[%clk 0:02:45.5]} 19. Rc1 {[%clk 0:02:14.8]} 19...
Rfc8 {[%clk 0:02:42.3]} 20. Rxc8 {[%clk 0:01:53.6]} 20... Rxc8 {[%clk
0:02:43.2]} 21. Nf4 {[%clk 0:01:54.1]} 21... a5 {[%clk 0:02:09.7]} 22. bxa5
{[%clk 0:01:43.6]} 22... bxa5 {[%clk 0:02:10.6]} 23. Nxe6+ {[%clk 0:01:40.8]}
23... Kf6 {[%clk 0:02:09.1]} 24. Nd8 {[%clk 0:01:08.3]} 24... Rc2 {[%clk
0:02:08.2]} 25. Rxf7+ {[%clk 0:01:05]} 25... Ke5 {[%clk 0:02:06.8]} 26. Ra7
{[%clk 0:00:57.7]} 26... Rxe2 {[%clk 0:01:37.1]} 27. Rxa5+ {[%clk 0:00:53.1]}
27... Kd6 {[%clk 0:01:37.3]} 28. Nf7+ {[%clk 0:00:18.3]} 28... Ke7 {[%clk
0:01:31.4]} 29. Ng5 {[%clk 0:00:18.6]} 29... Nxg5 {[%clk 0:01:18.5]} 30. Rxg5
{[%clk 0:00:19.5]} 30... Rxa2 {[%clk 0:01:18.8]} 31. g4 {[%clk 0:00:15]} 31...
Ra4 {[%clk 0:01:16.4]} 32. h3 {[%clk 0:00:14.6]} 32... Kf6 {[%clk 0:01:12]} 33.
Rb5 {[%clk 0:00:14.7]} 33... Ra6 {[%clk 0:01:11.2]} 34. Kg2 {[%clk 0:00:14.6]}
34... h6 {[%clk 0:01:09.7]} 35. Kg3 {[%clk 0:00:13.3]} 35... g5 {[%clk
0:01:08.8]} 36. f3 {[%clk 0:00:11.2]} 36... Ra3 {[%clk 0:01:00.1]} 37. Rf5+
{[%clk 0:00:09]} 37... Kg6 {[%clk 0:00:59.7]} 38. h4 {[%clk 0:00:09.9]} 38...
Ra2 {[%clk 0:00:50.8]} 39. Rb5 {[%clk 0:00:07.5]} 39... Rc2 {[%clk 0:00:49.3]}
40. Rb6+ {[%clk 0:00:07.1]} 40... Kg7 {[%clk 0:00:49.2]} 41. Ra6 {[%clk
0:00:06]} 41... Rb2 {[%clk 0:00:48.9]} 42. h5 {[%clk 0:00:05.7]} 42... Rc2
{[%clk 0:00:48.5]} 43. Rg6+ {[%clk 0:00:05.6]} 43... Kh7 {[%clk 0:00:47.9]} 44.
Re6 {[%clk 0:00:05.9]} 44... Kg7 {[%clk 0:00:47.1]} 45. Re7+ {[%clk 0:00:06.8]}
45... Kg8 {[%clk 0:00:45.7]} 46. Re3 {[%clk 0:00:06.9]} 46... Kg7 {[%clk
0:00:41.9]} 47. f4 {[%clk 0:00:07.1]} 47... gxf4+ {[%clk 0:00:40.2]} 48. Kxf4
{[%clk 0:00:08]} 48... Rc4+ {[%clk 0:00:35.8]} 49. Kf5 {[%clk 0:00:06.8]} 49...
Rc5+ {[%clk 0:00:31.3]} 50. Re5 {[%clk 0:00:06.8]} 50... Rc7 {[%clk 0:00:31.1]}
51. Rd5 {[%clk 0:00:02.5]} 51... Re7 {[%clk 0:00:27.2]} 52. Re5 {[%clk
0:00:02.6]} 52... Rb7 {[%clk 0:00:26.8]} 53. Kf4 {[%clk 0:00:03.5]} 53... Rb4+
{[%clk 0:00:26.2]} 54. Re4 {[%clk 0:00:04.2]} 54... Rb7 {[%clk 0:00:26.3]} 55.
Re6 {[%clk 0:00:04.2]} 55... Rb4+ {[%clk 0:00:25.2]} 56. Kf5 {[%clk 0:00:03.8]}
56... Rb5+ {[%clk 0:00:24.5]} 57. Re5 {[%clk 0:00:04.4]} 57... Rb7 {[%clk
0:00:24.6]} 58. Ra5 {[%clk 0:00:05.2]} 58... Rc7 {[%clk 0:00:21.3]} 59. Ra6
{[%clk 0:00:05.4]} 59... Rc5+ {[%clk 0:00:20.3]} 60. Ke4 {[%clk 0:00:04.3]}
60... Rc4+ {[%clk 0:00:19.9]} 61. Kf3 {[%clk 0:00:05]} 61... Rc3+ {[%clk
0:00:20.2]} 62. Kf4 {[%clk 0:00:05.6]} 62... Rc4+ {[%clk 0:00:19.9]} 63. Kg3
{[%clk 0:00:05.9]} 63... Rc7 {[%clk 0:00:19.4]} 64. Rg6+ {[%clk 0:00:04.4]}
64... Kh7 {[%clk 0:00:19.2]} 65. Re6 {[%clk 0:00:04.5]} 65... Kg7 {[%clk
0:00:18.7]} 66. Kf4 {[%clk 0:00:04.8]} 66... Rc4+ {[%clk 0:00:17.9]} 67. Kf5
{[%clk 0:00:05.3]} 67... Rc5+ {[%clk 0:00:18.2]} 68. Re5 {[%clk 0:00:05.6]}
68... Rc7 {[%clk 0:00:18.7]} 69. Ke6 {[%clk 0:00:03.9]} 69... Rc4 {[%clk
0:00:15.4]} 70. Kf5 {[%clk 0:00:03.1]} 70... Rc7 {[%clk 0:00:15.3]} 1/2-1/2

[Event "Early-Titled-Tuesday-Blitz-August-29-2023"]
[Site "Chess.com"]
[Date "2023.08.29"]
[Round "7"]
[White "BlitzWizard04"]
[Black "HackWithBlack"]
[Result "1-0"]
[WhiteElo "2583"]
[BlackElo "2362"]
[TimeControl "180+1"]
[EndTime "9:11:15 PDT"]
[Termination "BlitzWizard04 won by resignation"]

1. e4 {[%clk 0:03:00.9]} 1... c6 {[%clk 0:02:59.8]} 2. d4 {[%clk 0:03:00.8]}
2... d5 {[%clk 0:03:00.7]} 3. e5 {[%clk 0:03:01.4]} 3... Bf5 {[%clk 0:03:00.6]}
4. Nc3 {[%clk 0:03:02]} 4... e6 {[%clk 0:03:00.9]} 5. g4 {[%clk 0:03:02.7]} 5...
Bg6 {[%clk 0:03:01.4]} 6. Nge2 {[%clk 0:03:03.4]} 6... c5 {[%clk 0:03:00.1]} 7.
h4 {[%clk 0:03:01.3]} 7... h5 {[%clk 0:02:59.8]} 8. Nf4 {[%clk 0:03:01.5]} 8...
Bh7 {[%clk 0:03:00.1]} 9. Nxh5 {[%clk 0:03:01.2]} 9... Nc6 {[%clk 0:02:59.8]}
10. dxc5 {[%clk 0:02:59.5]} 10... Bxc5 {[%clk 0:02:52.8]} 11. Bb5 {[%clk
0:02:50.8]} 11... Kf8 {[%clk 0:02:46.8]} 12. Bxc6 {[%clk 0:02:49.7]} 12... bxc6
{[%clk 0:02:47.7]} 13. Qe2 {[%clk 0:02:33.3]} 13... Bg6 {[%clk 0:02:45.2]} 14.
Nf4 {[%clk 0:02:32]} 14... Bh7 {[%clk 0:02:35.2]} 15. Bd2 {[%clk 0:02:30.8]}
15... Qb6 {[%clk 0:02:32.5]} 16. Na4 {[%clk 0:02:29.5]} 1-0

[Event "Early-Titled-Tuesday-Blitz-August-29-2023"]
[Site "Chess.com"]
[Date "2023.08.29"]
[Round "7"]
[White "Doomfist26"]
[Black "snowlord"]
[Result "0-1"]
[WhiteElo "2591"]
[BlackElo "2907"]
[TimeControl "180+1"]
[EndTime "9:11:28 PDT"]
[Termination "snowlord won by resignation"]

1. e4 {[%clk 0:03:00.9]} 1... Nf6 {[%clk 0:02:58.8]} 2. e5 {[%clk 0:03:00.9]}
2... Nd5 {[%clk 0:02:59.2]} 3. d4 {[%clk 0:03:01.7]} 3... d6 {[%clk 0:02:59.8]}
4. Nf3 {[%clk 0:03:01.9]} 4... dxe5 {[%clk 0:03:00.2]} 5. Nxe5 {[%clk
0:03:01.2]} 5... c6 {[%clk 0:03:00.7]} 6. c4 {[%clk 0:02:43.5]} 6... Nb4 {[%clk
0:02:58.7]} 7. a3 {[%clk 0:02:42.2]} 7... Qxd4 {[%clk 0:02:58.3]} 8. axb4 {[%clk
0:02:36.1]} 8... Qxe5+ {[%clk 0:02:58.2]} 9. Be2 {[%clk 0:02:36.8]} 9... Bg4
{[%clk 0:02:41.9]} 10. Nc3 {[%clk 0:02:34.4]} 10... e6 {[%clk 0:02:38.6]} 11. c5
{[%clk 0:02:34.8]} 11... Na6 {[%clk 0:02:28.8]} 12. Rxa6 {[%clk 0:02:16.8]}
12... Bxe2 {[%clk 0:02:23.7]} 13. Qa4 {[%clk 0:02:17.4]} 0-1

[Event "Early-Titled-Tuesday-Blitz-August-29-2023"]
[Site "Chess.com"]
[Date "2023.08.29"]
[Round "7"]
[White "expii"]
[Black "Pilopa"]
[Result "0-1"]
[WhiteElo "2250"]
[BlackElo "2683"]
[TimeControl "180+1"]
[EndTime "9:12:19 PDT"]
[Termination "Pilopa won by resignation"]

1. e4 {[%clk 0:03:00.9]} 1... e6 {[%clk 0:02:57]} 2. d4 {[%clk 0:03:00.1]} 2...
d5 {[%clk 0:02:57.2]} 3. e5 {[%clk 0:03:01]} 3... c5 {[%clk 0:02:56.2]} 4. c3
{[%clk 0:03:01.2]} 4... Qa5 {[%clk 0:02:56.7]} 5. Nf3 {[%clk 0:02:58.9]} 5...
cxd4 {[%clk 0:02:56.5]} 6. Nxd4 {[%clk 0:02:54.4]} 6... Nc6 {[%clk 0:02:53.1]}
7. Be2 {[%clk 0:02:50.6]} 7... Nge7 {[%clk 0:02:33.6]} 8. f4 {[%clk 0:02:49.1]}
8... Nxd4 {[%clk 0:02:32.7]} 9. Qxd4 {[%clk 0:02:48.8]} 9... Nf5 {[%clk
0:02:31.7]} 10. Qd1 {[%clk 0:02:47.4]} 10... h5 {[%clk 0:02:30.2]} 11. O-O
{[%clk 0:02:45.5]} 11... h4 {[%clk 0:02:27]} 12. Kh1 {[%clk 0:02:44.1]} 12...
Ng3+ {[%clk 0:02:18.6]} 13. hxg3 {[%clk 0:02:31.6]} 13... hxg3+ {[%clk
0:02:19.5]} 14. Bh5 {[%clk 0:02:00.3]} 14... g6 {[%clk 0:02:19.3]} 15. Be3
{[%clk 0:01:59.2]} 15... Rxh5+ {[%clk 0:02:14.1]} 16. Kg1 {[%clk 0:01:59.2]}
16... Bc5 {[%clk 0:02:11.4]} 17. Qf3 {[%clk 0:01:58.5]} 17... Qb6 {[%clk
0:02:06.5]} 18. Re1 {[%clk 0:01:55]} 0-1

[Event "Early-Titled-Tuesday-Blitz-August-29-2023"]
[Site "Chess.com"]
[Date "2023.08.29"]
[Round "7"]
[White "blitzo_vich"]
[Black "Rosh1610"]
[Result "1-0"]
[WhiteElo "2598"]
[BlackElo "2440"]
[TimeControl "180+1"]
[EndTime "9:13:01 PDT"]
[Termination "blitzo_vich won by resignation"]

1. c4 {[%clk 0:03:00.9]} 1... Nf6 {[%clk 0:02:53.7]} 2. Nc3 {[%clk 0:03:00.9]}
2... e6 {[%clk 0:02:52.2]} 3. d4 {[%clk 0:03:00.2]} 3... Bb4 {[%clk 0:02:51]} 4.
Bd2 {[%clk 0:02:56.8]} 4... O-O {[%clk 0:02:50.1]} 5. Nf3 {[%clk 0:02:54.7]}
5... b6 {[%clk 0:02:45.9]} 6. a3 {[%clk 0:02:51.7]} 6... Bxc3 {[%clk 0:02:45.9]}
7. Bxc3 {[%clk 0:02:52.6]} 7... Ne4 {[%clk 0:02:46.1]} 8. Rc1 {[%clk 0:02:51.8]}
8... Nxc3 {[%clk 0:02:45.9]} 9. Rxc3 {[%clk 0:02:51.1]} 9... Bb7 {[%clk
0:02:45.5]} 10. e3 {[%clk 0:02:51.8]} 10... d6 {[%clk 0:02:45.7]} 11. Be2 {[%clk
0:02:51.9]} 11... Nd7 {[%clk 0:02:46.3]} 12. O-O {[%clk 0:02:52.5]} 12... c5
{[%clk 0:02:46.5]} 13. b4 {[%clk 0:02:51.1]} 13... Qc7 {[%clk 0:02:46.3]} 14.
Qc2 {[%clk 0:02:42.7]} 14... a5 {[%clk 0:02:31.6]} 15. b5 {[%clk 0:02:37.3]}
15... Nf6 {[%clk 0:02:27.9]} 16. dxc5 {[%clk 0:02:23.4]} 16... dxc5 {[%clk
0:02:20.6]} 17. Rd1 {[%clk 0:02:16.8]} 17... Rfd8 {[%clk 0:02:18]} 18. Rcd3
{[%clk 0:02:09.6]} 18... Rxd3 {[%clk 0:02:16.4]} 19. Qxd3 {[%clk 0:02:08.5]}
19... Ne4 {[%clk 0:01:58.9]} 20. Qd7 {[%clk 0:02:02.1]} 20... Qb8 {[%clk
0:01:57.2]} 21. Ne5 {[%clk 0:01:53.8]} 21... Qxe5 {[%clk 0:01:46.1]} 22. Qd8+
{[%clk 0:01:52.5]} 1-0

[Event "Early-Titled-Tuesday-Blitz-August-29-2023"]
[Site "Chess.com"]
[Date "2023.08.29"]
[Round "7"]
[White "ArtemDyachuk"]
[Black "starworld123"]
[Result "1-0"]
[WhiteElo "2612"]
[BlackElo "2771"]
[TimeControl "180+1"]
[EndTime "9:13:20 PDT"]
[Termination "ArtemDyachuk won by checkmate"]

1. e4 {[%clk 0:02:59.4]} 1... c5 {[%clk 0:02:44.6]} 2. Nf3 {[%clk 0:02:58.6]}
2... d6 {[%clk 0:02:43.7]} 3. d4 {[%clk 0:02:58.3]} 3... cxd4 {[%clk 0:02:44.6]}
4. Nxd4 {[%clk 0:02:58.8]} 4... Nf6 {[%clk 0:02:44.3]} 5. Nc3 {[%clk 0:02:58.7]}
5... a6 {[%clk 0:02:44.3]} 6. h3 {[%clk 0:02:58.3]} 6... b5 {[%clk 0:02:36]} 7.
a4 {[%clk 0:02:57]} 7... b4 {[%clk 0:02:35.7]} 8. Nd5 {[%clk 0:02:53.2]} 8...
Bb7 {[%clk 0:02:31.4]} 9. Bc4 {[%clk 0:02:40.9]} 9... Nbd7 {[%clk 0:02:23.3]}
10. O-O {[%clk 0:02:40.1]} 10... a5 {[%clk 0:02:08]} 11. Bg5 {[%clk 0:02:37]}
11... e6 {[%clk 0:02:07.7]} 12. Nxf6+ {[%clk 0:02:31.5]} 12... gxf6 {[%clk
0:02:00.3]} 13. Bh4 {[%clk 0:02:28.9]} 13... Bxe4 {[%clk 0:01:54.5]} 14. Bxe6
{[%clk 0:01:59]} 14... fxe6 {[%clk 0:01:53.2]} 15. Nxe6 {[%clk 0:01:59.9]} 15...
Qb6 {[%clk 0:01:48.4]} 16. Re1 {[%clk 0:01:46.3]} 16... f5 {[%clk 0:01:14.4]}
17. Qh5# {[%clk 0:01:44]} 1-0

[Event "Early-Titled-Tuesday-Blitz-August-29-2023"]
[Site "Chess.com"]
[Date "2023.08.29"]
[Round "7"]
[White "Alexei_Gubajdullin"]
[Black "reevecanada"]
[Result "1-0"]
[WhiteElo "2641"]
[BlackElo "2512"]
[TimeControl "180+1"]
[EndTime "9:13:20 PDT"]
[Termination "Alexei_Gubajdullin won by checkmate"]

1. d4 {[%clk 0:02:59.8]} 1... Nf6 {[%clk 0:02:52.8]} 2. Nf3 {[%clk 0:02:59]}
2... g6 {[%clk 0:02:52.5]} 3. Bf4 {[%clk 0:02:58.7]} 3... Bg7 {[%clk 0:02:51.7]}
4. e3 {[%clk 0:02:58.9]} 4... d5 {[%clk 0:02:52.2]} 5. Be2 {[%clk 0:02:59]} 5...
O-O {[%clk 0:02:52.7]} 6. O-O {[%clk 0:02:59.2]} 6... c5 {[%clk 0:02:53.4]} 7.
c3 {[%clk 0:02:59]} 7... Nc6 {[%clk 0:02:53.6]} 8. Nbd2 {[%clk 0:02:59.4]} 8...
b6 {[%clk 0:02:54]} 9. Ne5 {[%clk 0:02:58.4]} 9... Bb7 {[%clk 0:02:54.1]} 10. a4
{[%clk 0:02:58.4]} 10... Nd7 {[%clk 0:02:53.6]} 11. Nxc6 {[%clk 0:02:57.9]}
11... Bxc6 {[%clk 0:02:53.3]} 12. a5 {[%clk 0:02:58.1]} 12... bxa5 {[%clk
0:02:51.5]} 13. Nb3 {[%clk 0:02:54.4]} 13... a4 {[%clk 0:02:50.1]} 14. Nxc5
{[%clk 0:02:54.2]} 14... Nxc5 {[%clk 0:02:49.9]} 15. dxc5 {[%clk 0:02:54.4]}
15... e5 {[%clk 0:02:49.3]} 16. Bg3 {[%clk 0:02:54.6]} 16... Rb8 {[%clk
0:02:49]} 17. c4 {[%clk 0:02:24.4]} 17... dxc4 {[%clk 0:02:43.5]} 18. Bxc4
{[%clk 0:02:23.8]} 18... Rxb2 {[%clk 0:02:41.9]} 19. Qc1 {[%clk 0:02:22]} 19...
Rb8 {[%clk 0:02:35.8]} 20. Rd1 {[%clk 0:02:21.8]} 20... Qa5 {[%clk 0:02:34.9]}
21. Ba2 {[%clk 0:02:20.3]} 21... Rfc8 {[%clk 0:02:33.7]} 22. Qc4 {[%clk
0:02:11]} 22... Be8 {[%clk 0:02:31.7]} 23. Rd5 {[%clk 0:02:10.7]} 23... Rb2
{[%clk 0:02:09.5]} 24. Bxe5 {[%clk 0:02:02]} 24... Bxe5 {[%clk 0:02:08.5]} 25.
Rxe5 {[%clk 0:02:01.8]} 25... Qd2 {[%clk 0:02:07.8]} 26. Rxe8+ {[%clk
0:02:00.8]} 26... Kg7 {[%clk 0:02:00.1]} 27. Qxf7+ {[%clk 0:01:58.5]} 27... Kh6
{[%clk 0:02:00.2]} 28. Qf8+ {[%clk 0:01:46.4]} 28... Kh5 {[%clk 0:01:59.1]} 29.
Re5+ {[%clk 0:01:45.9]} 29... g5 {[%clk 0:01:53.8]} 30. Qf7+ {[%clk 0:01:45.3]}
30... Kg4 {[%clk 0:01:47.9]} 31. Qf3+ {[%clk 0:01:44.3]} 31... Kh4 {[%clk
0:01:45.7]} 32. Qh3# {[%clk 0:01:44.4]} 1-0

[Event "Early-Titled-Tuesday-Blitz-August-29-2023"]
[Site "Chess.com"]
[Date "2023.08.29"]
[Round "7"]
[White "Ariadna_Atreides"]
[Black "mistrzemi"]
[Result "1-0"]
[WhiteElo "2234"]
[BlackElo "2388"]
[TimeControl "180+1"]
[EndTime "9:13:39 PDT"]
[Termination "Ariadna_Atreides won by resignation"]

1. d4 {[%clk 0:03:00.9]} 1... d5 {[%clk 0:02:59.1]} 2. Nf3 {[%clk 0:03:00.4]}
2... e6 {[%clk 0:02:59.2]} 3. e3 {[%clk 0:03:00.8]} 3... Nf6 {[%clk 0:02:59.3]}
4. Bd3 {[%clk 0:03:01.2]} 4... c6 {[%clk 0:02:59.4]} 5. Nbd2 {[%clk 0:03:01.7]}
5... Nbd7 {[%clk 0:02:58.1]} 6. O-O {[%clk 0:03:00]} 6... Be7 {[%clk 0:02:58.2]}
7. b3 {[%clk 0:02:56.9]} 7... O-O {[%clk 0:02:57.6]} 8. Bb2 {[%clk 0:02:57.1]}
8... b6 {[%clk 0:02:57.6]} 9. Ne5 {[%clk 0:02:53.7]} 9... Bb7 {[%clk 0:02:41.1]}
10. Qf3 {[%clk 0:02:52]} 10... Bd6 {[%clk 0:02:35.3]} 11. Qh3 {[%clk 0:02:50.4]}
11... c5 {[%clk 0:02:21.6]} 12. Nxd7 {[%clk 0:02:43]} 12... Qxd7 {[%clk
0:02:17.8]} 13. dxc5 {[%clk 0:02:42.9]} 13... e5 {[%clk 0:01:32.6]} 14. cxd6
{[%clk 0:02:41.5]} 14... Qxh3 {[%clk 0:01:32.2]} 15. gxh3 {[%clk 0:02:39.4]}
15... Nd7 {[%clk 0:01:27.8]} 16. c4 {[%clk 0:02:28.2]} 16... e4 {[%clk 0:01:25]}
17. Bc2 {[%clk 0:02:19.9]} 17... Rfe8 {[%clk 0:01:22.3]} 18. cxd5 {[%clk
0:02:18.6]} 18... Bxd5 {[%clk 0:01:21.1]} 19. b4 {[%clk 0:02:13.7]} 19... Rac8
{[%clk 0:01:17.9]} 20. Bb3 {[%clk 0:02:13.5]} 20... Bxb3 {[%clk 0:01:11.8]} 21.
Nxb3 {[%clk 0:02:13.5]} 21... Rc2 {[%clk 0:01:07.7]} 22. Bd4 {[%clk 0:02:04]}
22... Ne5 {[%clk 0:01:01.9]} 23. Bxe5 {[%clk 0:01:58.2]} 23... Rxe5 {[%clk
0:01:01.3]} 24. d7 {[%clk 0:01:53.3]} 1-0

[Event "Early-Titled-Tuesday-Blitz-August-29-2023"]
[Site "Chess.com"]
[Date "2023.08.29"]
[Round "7"]
[White "Apocalyps999"]
[Black "zurzan"]
[Result "1-0"]
[WhiteElo "2318"]
[BlackElo "2084"]
[TimeControl "180+1"]
[EndTime "9:13:43 PDT"]
[Termination "Apocalyps999 won by resignation"]

1. e4 {[%clk 0:03:00.9]} 1... g6 {[%clk 0:03:00.9]} 2. d4 {[%clk 0:02:59.1]}
2... Bg7 {[%clk 0:03:01.8]} 3. Nc3 {[%clk 0:02:53.7]} 3... c6 {[%clk 0:03:02.1]}
4. Be3 {[%clk 0:02:53.4]} 4... d5 {[%clk 0:03:02.3]} 5. e5 {[%clk 0:02:49.6]}
5... f6 {[%clk 0:03:02.6]} 6. exf6 {[%clk 0:02:47]} 6... exf6 {[%clk 0:03:01.2]}
7. Nf3 {[%clk 0:02:47.1]} 7... Ne7 {[%clk 0:03:00.8]} 8. Qd2 {[%clk 0:02:41.9]}
8... Bg4 {[%clk 0:03:00.1]} 9. Be2 {[%clk 0:02:37.8]} 9... Nf5 {[%clk
0:02:59.3]} 10. Bf4 {[%clk 0:02:37.1]} 10... O-O {[%clk 0:02:55.3]} 11. h3
{[%clk 0:02:35.2]} 11... Bxf3 {[%clk 0:02:54.4]} 12. Bxf3 {[%clk 0:02:31.7]}
12... Nd6 {[%clk 0:02:52.4]} 13. b3 {[%clk 0:02:28.3]} 13... Re8+ {[%clk
0:02:51.4]} 14. Ne2 {[%clk 0:02:26.3]} 14... Ne4 {[%clk 0:02:50.7]} 15. Bxe4
{[%clk 0:02:25.9]} 15... dxe4 {[%clk 0:02:51.2]} 16. O-O-O {[%clk 0:02:23.2]}
16... f5 {[%clk 0:02:46.8]} 17. g4 {[%clk 0:02:16]} 17... Qe7 {[%clk 0:02:27.8]}
18. gxf5 {[%clk 0:02:11]} 18... Qa3+ {[%clk 0:02:27.3]} 19. Kb1 {[%clk 0:02:10]}
19... Na6 {[%clk 0:02:26.2]} 20. c3 {[%clk 0:01:53.2]} 20... b5 {[%clk
0:02:22.4]} 21. fxg6 {[%clk 0:01:47.3]} 21... hxg6 {[%clk 0:02:21.5]} 22. Rhg1
{[%clk 0:01:44]} 22... Kf7 {[%clk 0:02:13.8]} 23. h4 {[%clk 0:01:31.3]} 23...
Rad8 {[%clk 0:02:11.5]} 24. h5 {[%clk 0:01:28.8]} 24... Re6 {[%clk 0:02:11.4]}
25. hxg6+ {[%clk 0:01:26.9]} 25... Rxg6 {[%clk 0:02:11.5]} 26. Rxg6 {[%clk
0:01:26.6]} 26... Kxg6 {[%clk 0:02:12.4]} 27. Rg1+ {[%clk 0:01:25.5]} 27... Kf7
{[%clk 0:02:12.9]} 28. Qc2 {[%clk 0:01:22]} 28... Re8 {[%clk 0:02:10.2]} 29. Ng3
{[%clk 0:01:19.2]} 29... c5 {[%clk 0:02:06.2]} 30. Nf5 {[%clk 0:01:17.4]} 30...
Bf6 {[%clk 0:02:04.2]} 31. Nd6+ {[%clk 0:01:16.3]} 31... Ke6 {[%clk 0:02:04.4]}
32. Qxe4+ {[%clk 0:01:14.6]} 1-0

[Event "Early-Titled-Tuesday-Blitz-August-29-2023"]
[Site "Chess.com"]
[Date "2023.08.29"]
[Round "7"]
[White "MaevskiyNikolay"]
[Black "borocotoajua"]
[Result "0-1"]
[WhiteElo "2650"]
[BlackElo "2539"]
[TimeControl "180+1"]
[EndTime "9:13:49 PDT"]
[Termination "borocotoajua won by resignation"]

1. d4 {[%clk 0:02:56.6]} 1... Nf6 {[%clk 0:02:59.3]} 2. c4 {[%clk 0:02:56.5]}
2... g6 {[%clk 0:02:59.2]} 3. Nc3 {[%clk 0:02:56.4]} 3... d5 {[%clk 0:02:58.7]}
4. cxd5 {[%clk 0:02:57.2]} 4... Nxd5 {[%clk 0:02:59.3]} 5. e4 {[%clk 0:02:58]}
5... Nxc3 {[%clk 0:02:59.1]} 6. bxc3 {[%clk 0:02:58.9]} 6... Bg7 {[%clk
0:02:59.5]} 7. Nf3 {[%clk 0:02:59.8]} 7... c5 {[%clk 0:02:58.8]} 8. Be2 {[%clk
0:03:00.4]} 8... Nc6 {[%clk 0:02:58]} 9. d5 {[%clk 0:03:00.2]} 9... Na5 {[%clk
0:02:52.1]} 10. Bd2 {[%clk 0:02:54.7]} 10... O-O {[%clk 0:02:43.2]} 11. c4
{[%clk 0:02:53.9]} 11... e6 {[%clk 0:02:34.5]} 12. Rc1 {[%clk 0:02:51.9]} 12...
exd5 {[%clk 0:02:28.7]} 13. cxd5 {[%clk 0:02:51.9]} 13... Re8 {[%clk 0:02:15.4]}
14. Rxc5 {[%clk 0:02:36.2]} 14... b6 {[%clk 0:02:12.3]} 15. Bxa5 {[%clk
0:02:35.6]} 15... bxa5 {[%clk 0:02:12]} 16. Rc4 {[%clk 0:02:35.4]} 16... Ba6
{[%clk 0:02:01.3]} 17. Ra4 {[%clk 0:02:35.2]} 17... Bxe2 {[%clk 0:01:46.3]} 18.
Qxe2 {[%clk 0:02:35.8]} 18... Bc3+ {[%clk 0:01:36.7]} 19. Kf1 {[%clk 0:02:35.8]}
19... Rb8 {[%clk 0:01:33.1]} 20. g3 {[%clk 0:02:35.5]} 20... Qd7 {[%clk
0:01:28]} 21. Qc2 {[%clk 0:02:07]} 21... Qh3+ {[%clk 0:01:21.5]} 22. Ke2 {[%clk
0:02:06.9]} 22... Rb2 {[%clk 0:01:19.5]} 23. Qxb2 {[%clk 0:02:02.7]} 23... Bxb2
{[%clk 0:01:20.4]} 24. Rb1 {[%clk 0:01:59.4]} 24... Bc3 {[%clk 0:01:16.2]} 25.
Kd3 {[%clk 0:01:59.6]} 25... Bb4 {[%clk 0:01:08.4]} 26. Nd4 {[%clk 0:01:59.8]}
26... Qg2 {[%clk 0:01:01.2]} 27. a3 {[%clk 0:01:59.8]} 27... Qxe4+ {[%clk
0:01:01]} 0-1